[Event "Torneo Nuevo Centro. Jornada 11"]
[Site "Chess.com"]
[Date "2020.08.28"]
[Round "7"]
[White "Pardo Ruiz, Carlos"]
[Black "Castellano López, Javier"]
[Result "0-1"]
[WhiteElo "1700"]
[BlackElo "1933"]
[TimeControl "180+2"]
[EndTime "11:41:06 PDT"]
[Termination "Victoria de its_xavi_official por jaque mate"]

1. e4 {[%clk 0:03:01.9]} 1... d5 {[%clk 0:02:59.9]} 2. exd5 {[%clk 0:03:01.3]}
2... Qxd5 {[%clk 0:03:01.8]} 3. Nc3 {[%clk 0:03:01.2]} 3... Qa5 {[%clk
0:03:02.1]} 4. d4 {[%clk 0:03:01.2]} 4... c6 {[%clk 0:03:01]} 5. Bd2 {[%clk
0:03:00.1]} 5... Nf6 {[%clk 0:02:59.1]} 6. Bc4 {[%clk 0:02:59.9]} 6... Bg4
{[%clk 0:02:57.5]} 7. f3 {[%clk 0:02:53.7]} 7... Bf5 {[%clk 0:02:49.9]} 8. Nge2
{[%clk 0:02:45.7]} 8... Qc7 {[%clk 0:02:47.8]} 9. Bf4 {[%clk 0:02:42.8]} 9...
Qd8 {[%clk 0:02:39.3]} 10. O-O {[%clk 0:02:42.4]} 10... e6 {[%clk 0:02:40.1]}
11. Ng3 {[%clk 0:02:40.3]} 11... Bg6 {[%clk 0:02:39.4]} 12. Re1 {[%clk
0:02:39.8]} 12... Bd6 {[%clk 0:02:36.5]} 13. Bxd6 {[%clk 0:02:38.9]} 13... Qxd6
{[%clk 0:02:36.8]} 14. Qd2 {[%clk 0:02:30.1]} 14... O-O {[%clk 0:02:34.4]} 15.
Rad1 {[%clk 0:02:29.1]} 15... Nbd7 {[%clk 0:02:32.7]} 16. Nce4 {[%clk
0:02:25.5]} 16... Nxe4 {[%clk 0:02:31.8]} 17. fxe4 {[%clk 0:02:27.4]} 17... Nb6
{[%clk 0:02:29]} 18. Bb3 {[%clk 0:02:25.8]} 18... Rfd8 {[%clk 0:02:28.7]} 19. e5
{[%clk 0:02:15.7]} 19... Qe7 {[%clk 0:02:25.3]} 20. c3 {[%clk 0:02:11.9]} 20...
c5 {[%clk 0:02:22.9]} 21. Qf4 {[%clk 0:02:07.6]} 21... c4 {[%clk 0:02:16.5]} 22.
Bxc4 {[%clk 0:02:03.7]} 22... Nxc4 {[%clk 0:02:15.6]} 23. b3 {[%clk 0:02:04.4]}
23... Nb2 {[%clk 0:02:12.8]} 24. Rd2 {[%clk 0:01:58.7]} 24... Nd3 {[%clk
0:02:13.8]} 25. Rxd3 {[%clk 0:01:59.4]} 25... Bxd3 {[%clk 0:02:15.7]} 26. Qg4
{[%clk 0:01:52.7]} 26... Rac8 {[%clk 0:02:11.6]} 27. Nh5 {[%clk 0:01:51.5]}
27... Bg6 {[%clk 0:02:12.3]} 28. c4 {[%clk 0:01:48.3]} 28... Bxh5 {[%clk
0:02:11.4]} 29. Qxh5 {[%clk 0:01:50.2]} 29... Rxd4 {[%clk 0:02:11.5]} 30. h3
{[%clk 0:01:50.2]} 30... Rcd8 {[%clk 0:02:12]} 31. Kh1 {[%clk 0:01:46.6]} 31...
Qd7 {[%clk 0:02:10.4]} 32. Qf3 {[%clk 0:01:46.1]} 32... Rd1 {[%clk 0:02:10.5]}
33. Qe2 {[%clk 0:01:43.9]} 33... Rxe1+ {[%clk 0:02:11.1]} 34. Qxe1 {[%clk
0:01:44.7]} 34... Qd1 {[%clk 0:02:12.6]} 35. Qxd1 {[%clk 0:01:46.3]} 35... Rxd1+
{[%clk 0:02:14]} 36. Kh2 {[%clk 0:01:48.1]} 36... Rd2 {[%clk 0:02:15.8]} 37. a4
{[%clk 0:01:46.3]} 37... Rb2 {[%clk 0:02:16.9]} 38. c5 {[%clk 0:01:45.6]} 38...
Rxb3 {[%clk 0:02:18]} 39. a5 {[%clk 0:01:47.5]} 39... Rb5 {[%clk 0:02:19]} 40.
a6 {[%clk 0:01:48.8]} 40... bxa6 {[%clk 0:02:19.8]} 41. c6 {[%clk 0:01:50.1]}
41... Rc5 {[%clk 0:02:21.7]} 42. c7 {[%clk 0:01:52]} 42... Rxc7 {[%clk 0:02:23]}
43. g4 {[%clk 0:01:50.2]} 43... a5 {[%clk 0:02:24.9]} 44. Kg3 {[%clk 0:01:51.5]}
44... a4 {[%clk 0:02:26.8]} 45. Kh4 {[%clk 0:01:53.1]} 45... a3 {[%clk
0:02:28.7]} 46. Kh5 {[%clk 0:01:54.8]} 46... a2 {[%clk 0:02:30.6]} 47. h4 {[%clk
0:01:56.3]} 47... a1=Q {[%clk 0:02:32]} 48. g5 {[%clk 0:01:58.2]} 48... Qxe5
{[%clk 0:02:32]} 49. Kg4 {[%clk 0:01:57.4]} 49... Rc4+ {[%clk 0:02:33.9]} 50.
Kh3 {[%clk 0:01:54.6]} 50... Qf5+ {[%clk 0:02:34.7]} 51. Kg3 {[%clk 0:01:55.3]}
51... Qd3+ {[%clk 0:02:36.6]} 52. Kf2 {[%clk 0:01:56.2]} 52... Rc2+ {[%clk
0:02:38.5]} 53. Ke1 {[%clk 0:01:57.8]} 53... Qd2+ {[%clk 0:02:39.3]} 54. Kf1
{[%clk 0:01:57.4]} 54... Qf2# {[%clk 0:02:41.2]} 0

[Event "Torneo Nuevo Centro. Jornada 11"]
[Site "Chess.com"]
[Date "2020.08.28"]
[Round "7"]
[White "Carbonell Sancho, Marc"]
[Black "Luque Saiz, Andrés"]
[Result "1-0"]
[WhiteElo "2002"]
[BlackElo "2047"]
[TimeControl "180+2"]
[EndTime "11:41:27 PDT"]
[Termination "Victoria de AkaliGOD por jaque mate"]

1. e4 {[%clk 0:03:01.4]} 1... c6 {[%clk 0:03:01.2]} 2. d4 {[%clk 0:03:01.8]}
2... d5 {[%clk 0:03:03.1]} 3. Nc3 {[%clk 0:03:02.7]} 3... dxe4 {[%clk
0:03:04.3]} 4. Nxe4 {[%clk 0:03:04.6]} 4... Nf6 {[%clk 0:03:05.5]} 5. Nxf6+
{[%clk 0:03:05.3]} 5... exf6 {[%clk 0:03:07.4]} 6. c3 {[%clk 0:03:05.5]} 6...
Bd6 {[%clk 0:03:08.6]} 7. Bd3 {[%clk 0:03:06.1]} 7... O-O {[%clk 0:03:10]} 8.
Qc2 {[%clk 0:03:06.4]} 8... Re8+ {[%clk 0:03:11.3]} 9. Ne2 {[%clk 0:03:08]} 9...
h5 {[%clk 0:03:12.6]} 10. Be3 {[%clk 0:03:03.8]} 10... Nd7 {[%clk 0:03:12.8]}
11. O-O-O {[%clk 0:02:49.2]} 11... Nf8 {[%clk 0:03:14.1]} 12. Nf4 {[%clk
0:02:39]} 12... Bxf4 {[%clk 0:03:09]} 13. Bxf4 {[%clk 0:02:03.7]} 13... Be6
{[%clk 0:03:08.3]} 14. Kb1 {[%clk 0:01:50.4]} 14... b5 {[%clk 0:03:01.5]} 15. h3
{[%clk 0:01:39.4]} 15... a5 {[%clk 0:02:58.9]} 16. g4 {[%clk 0:01:39.9]} 16...
h4 {[%clk 0:02:56]} 17. Rhg1 {[%clk 0:01:33.8]} 17... g6 {[%clk 0:02:38.2]} 18.
g5 {[%clk 0:01:29.3]} 18... f5 {[%clk 0:02:38.9]} 19. f3 {[%clk 0:01:24.4]}
19... Qd5 {[%clk 0:02:37]} 20. b3 {[%clk 0:01:16.6]} 20... a4 {[%clk 0:02:37.1]}
21. b4 {[%clk 0:01:17.6]} 21... a3 {[%clk 0:02:29.3]} 22. Qf2 {[%clk 0:01:13.5]}
22... Nd7 {[%clk 0:02:26.6]} 23. Rd2 {[%clk 0:01:13.9]} 23... Nb6 {[%clk
0:02:18.6]} 24. Qxh4 {[%clk 0:01:14.1]} 24... Na4 {[%clk 0:02:13.5]} 25. Be5
{[%clk 0:01:11.8]} 25... Nxc3+ {[%clk 0:01:49.7]} 26. Ka1 {[%clk 0:01:11]} 26...
Kf8 {[%clk 0:01:47.4]} 27. Bf6 {[%clk 0:01:06.5]} 27... Qxf3 {[%clk 0:01:23.3]}
28. Qh8# {[%clk 0:01:05.4]} 1

[Event "Torneo Nuevo Centro. Jornada 11"]
[Site "Chess.com"]
[Date "2020.08.28"]
[Round "7"]
[White "Marques Montolio, Luis"]
[Black "Rodriguez Rodriguez, Joan David "]
[Result "0-1"]
[WhiteElo "1484"]
[BlackElo "1785"]
[TimeControl "180+2"]
[EndTime "11:41:58 PDT"]
[Termination "Victoria de Not_Jr_chess por abandono"]

1. e4 {[%clk 0:03:01.9]} 1... d6 {[%clk 0:03:00.3]} 2. d4 {[%clk 0:03:01.7]}
2... Nf6 {[%clk 0:03:00.1]} 3. Nc3 {[%clk 0:03:01.5]} 3... Nbd7 {[%clk
0:02:59.5]} 4. Bd3 {[%clk 0:03:01.4]} 4... e5 {[%clk 0:03:00.2]} 5. d5 {[%clk
0:02:54.8]} 5... Be7 {[%clk 0:02:59.6]} 6. Bg5 {[%clk 0:02:55.6]} 6... c6 {[%clk
0:02:57.2]} 7. Qd2 {[%clk 0:02:53.3]} 7... h6 {[%clk 0:02:54.6]} 8. Bh4 {[%clk
0:02:47.6]} 8... g5 {[%clk 0:02:54.6]} 9. Bg3 {[%clk 0:02:47.8]} 9... Qc7 {[%clk
0:02:55.6]} 10. h4 {[%clk 0:02:39.3]} 10... g4 {[%clk 0:02:47.4]} 11. f3 {[%clk
0:02:28.9]} 11... h5 {[%clk 0:02:44.9]} 12. f4 {[%clk 0:02:22.2]} 12... exf4
{[%clk 0:02:39]} 13. Bxf4 {[%clk 0:02:23]} 13... Nf8 {[%clk 0:02:21.5]} 14.
O-O-O {[%clk 0:02:19.8]} 14... Ng6 {[%clk 0:02:21.9]} 15. Bg3 {[%clk 0:02:12.7]}
15... Bd7 {[%clk 0:02:19.1]} 16. Nge2 {[%clk 0:02:00]} 16... O-O-O {[%clk
0:02:16.3]} 17. dxc6 {[%clk 0:01:56.4]} 17... Bxc6 {[%clk 0:02:12.6]} 18. Nd5
{[%clk 0:01:28.7]} 18... Nxd5 {[%clk 0:01:59.7]} 19. exd5 {[%clk 0:01:29.2]}
19... Bxd5 {[%clk 0:01:57.2]} 20. Bf5+ {[%clk 0:01:29.9]} 20... Be6 {[%clk
0:01:57.8]} 21. Bxe6+ {[%clk 0:01:30.4]} 21... fxe6 {[%clk 0:01:56.8]} 22. Nd4
{[%clk 0:01:00.1]} 22... Qd7 {[%clk 0:01:38.5]} 23. Rhe1 {[%clk 0:00:56.9]}
23... Bf8 {[%clk 0:01:37.1]} 24. Nxe6 {[%clk 0:00:56.3]} 24... Bh6 {[%clk
0:01:36.7]} 25. Bf4 {[%clk 0:00:54]} 25... Nxf4 {[%clk 0:01:17.7]} 26. Qc3+
{[%clk 0:00:53.7]} 26... Kb8 {[%clk 0:01:08.6]} 27. Nxd8 {[%clk 0:00:54.5]}
27... Nd5+ {[%clk 0:01:05.8]} 28. Kb1 {[%clk 0:00:52.2]} 28... Nxc3+ {[%clk
0:01:06.7]} 29. bxc3 {[%clk 0:00:52.1]} 0

[Event "Torneo Nuevo Centro. Jornada 11"]
[Site "Chess.com"]
[Date "2020.08.28"]
[Round "7"]
[White "Bendayán Claros, Aaron"]
[Black "Montesinos Diaz, Luis"]
[Result "0-1"]
[WhiteElo "1978"]
[BlackElo "1900"]
[TimeControl "180+2"]
[EndTime "11:42:27 PDT"]
[Termination "Victoria de Gwiso_06 por tiempo"]

1. d4 {[%clk 0:02:58.5]} 1... d5 {[%clk 0:02:58.2]} 2. e3 {[%clk 0:02:37.4]}
2... Nf6 {[%clk 0:02:57.3]} 3. Bd3 {[%clk 0:02:36.8]} 3... c5 {[%clk 0:02:50.4]}
4. c3 {[%clk 0:02:37.4]} 4... Nc6 {[%clk 0:02:49.9]} 5. f4 {[%clk 0:02:37.8]}
5... Bg4 {[%clk 0:02:45.1]} 6. Nf3 {[%clk 0:02:35.6]} 6... e6 {[%clk 0:02:46]}
7. Nbd2 {[%clk 0:02:34.7]} 7... cxd4 {[%clk 0:02:44]} 8. exd4 {[%clk 0:02:34.5]}
8... Bd6 {[%clk 0:02:41.5]} 9. g3 {[%clk 0:02:30.6]} 9... h5 {[%clk 0:02:32.5]}
10. Qb3 {[%clk 0:02:24.7]} 10... Qc7 {[%clk 0:02:15.8]} 11. Kf2 {[%clk 0:01:42]}
11... h4 {[%clk 0:02:04]} 12. Nxh4 {[%clk 0:01:22.9]} 12... Rxh4 {[%clk
0:02:03.2]} 13. gxh4 {[%clk 0:01:24.8]} 13... Bxf4 {[%clk 0:02:04.2]} 14. h3
{[%clk 0:00:41.9]} 14... Bh5 {[%clk 0:01:26.8]} 15. Kg2 {[%clk 0:00:09.5]} 15...
e5 {[%clk 0:01:09.7]} 16. dxe5 {[%clk 0:00:07.9]} 16... Qxe5 {[%clk 0:01:09.4]}
17. Nf3 {[%clk 0:00:06.7]} 17... Bxf3+ {[%clk 0:01:08]} 18. Kxf3 {[%clk
0:00:07.4]} 18... Bh2 {[%clk 0:01:03.3]} 19. Rxh2 {[%clk 0:00:05.2]} 19... Qxh2
{[%clk 0:01:02.8]} 20. Bf4 {[%clk 0:00:06.2]} 20... Qxh3+ {[%clk 0:01:01.4]} 21.
Bg3 {[%clk 0:00:07.4]} 21... Ne5+ {[%clk 0:01:00.6]} 0

[Event "Torneo Nuevo Centro. Jornada 11"]
[Site "Chess.com"]
[Date "2020.08.28"]
[Round "7"]
[White "Echeverria, Nestor"]
[Black "Yatseta Fernandez, Marc Kazymyr"]
[Result "0-1"]
[WhiteElo "1946"]
[BlackElo "1520"]
[TimeControl "180+2"]
[EndTime "11:42:40 PDT"]
[Termination "Victoria de K_73 por tiempo"]

1. e4 {[%clk 0:02:47.8]} 1... e5 {[%clk 0:03:00.1]} 2. Nf3 {[%clk 0:02:38.8]}
2... Nc6 {[%clk 0:03:01]} 3. Bc4 {[%clk 0:02:38.5]} 3... Bc5 {[%clk 0:02:54]} 4.
b4 {[%clk 0:02:33.7]} 4... Bxb4 {[%clk 0:02:51.9]} 5. c3 {[%clk 0:02:34.7]} 5...
Ba5 {[%clk 0:02:47.5]} 6. d4 {[%clk 0:02:35]} 6... d6 {[%clk 0:02:40.4]} 7. O-O
{[%clk 0:02:33.2]} 7... Nf6 {[%clk 0:02:24.5]} 8. dxe5 {[%clk 0:02:10.8]} 8...
Nxe5 {[%clk 0:02:24.5]} 9. Nxe5 {[%clk 0:02:08.9]} 9... dxe5 {[%clk 0:02:26.4]}
10. Qxd8+ {[%clk 0:01:56.5]} 10... Kxd8 {[%clk 0:02:25.2]} 11. Bxf7 {[%clk
0:01:56.8]} 11... Nxe4 {[%clk 0:02:20]} 12. Re1 {[%clk 0:01:51.6]} 12... Nxc3
{[%clk 0:02:16.2]} 13. Bg5+ {[%clk 0:01:50.5]} 13... Kd7 {[%clk 0:02:13.2]} 14.
Nxc3 {[%clk 0:01:48.8]} 14... Bxc3 {[%clk 0:02:11.3]} 15. Red1+ {[%clk
0:01:45.8]} 15... Bd4 {[%clk 0:02:12.6]} 16. Rac1 {[%clk 0:01:12.9]} 16... b6
{[%clk 0:02:08]} 17. Bd5 {[%clk 0:01:09.9]} 17... Rb8 {[%clk 0:02:08.2]} 18.
Bc6+ {[%clk 0:01:08.4]} 18... Kd6 {[%clk 0:02:01.2]} 19. Bf4 {[%clk 0:01:04.7]}
19... Ke6 {[%clk 0:01:49]} 20. Bg3 {[%clk 0:00:47.7]} 20... Bb7 {[%clk
0:01:47.1]} 21. Ba4 {[%clk 0:00:29]} 21... c5 {[%clk 0:01:44.9]} 22. Bb3+ {[%clk
0:00:28.7]} 22... Bd5 {[%clk 0:01:42.3]} 23. Bc2 {[%clk 0:00:18.7]} 23... g6
{[%clk 0:01:37.1]} 24. a4 {[%clk 0:00:19.1]} 24... Rhf8 {[%clk 0:01:36.5]} 25.
Kf1 {[%clk 0:00:17]} 25... Bc4+ {[%clk 0:01:28.8]} 26. Kg1 {[%clk 0:00:14.8]}
26... Bd5 {[%clk 0:01:27.5]} 27. Re1 {[%clk 0:00:15]} 27... Kd6 {[%clk
0:01:26.4]} 28. Rcd1 {[%clk 0:00:05.7]} 28... a6 {[%clk 0:01:23.9]} 0

[Event "Torneo Nuevo Centro. Jornada 11"]
[Site "Chess.com"]
[Date "2020.08.28"]
[Round "7"]
[White "Bascuñana Sánchez, Pablo"]
[Black "Bosch Jordà, Ricard"]
[Result "0-1"]
[WhiteElo "1671"]
[BlackElo "1910"]
[TimeControl "180+2"]
[EndTime "11:43:03 PDT"]
[Termination "Victoria de UltimateLimo por jaque mate"]

1. e4 {[%clk 0:03:01.9]} 1... c5 {[%clk 0:03:00.1]} 2. Nf3 {[%clk 0:03:03.1]}
2... Nc6 {[%clk 0:02:58.8]} 3. d4 {[%clk 0:03:04.5]} 3... cxd4 {[%clk
0:02:57.1]} 4. Nxd4 {[%clk 0:03:05.9]} 4... g6 {[%clk 0:02:53.3]} 5. Nc3 {[%clk
0:03:07.3]} 5... Bg7 {[%clk 0:02:53.7]} 6. Be3 {[%clk 0:03:08.8]} 6... Nf6
{[%clk 0:02:49.9]} 7. Bc4 {[%clk 0:03:09.5]} 7... Qa5 {[%clk 0:02:48.2]} 8. O-O
{[%clk 0:03:07.7]} 8... O-O {[%clk 0:02:48.8]} 9. Qd2 {[%clk 0:03:04.5]} 9... a6
{[%clk 0:02:44.2]} 10. Nxc6 {[%clk 0:02:51.5]} 10... dxc6 {[%clk 0:02:34.2]} 11.
Nd5 {[%clk 0:02:41.2]} 11... Qxd2 {[%clk 0:02:29.3]} 12. Nxe7+ {[%clk 0:02:41]}
12... Kh8 {[%clk 0:02:30.4]} 13. Bxd2 {[%clk 0:02:40.2]} 13... Nxe4 {[%clk
0:02:30]} 14. Bb4 {[%clk 0:02:36.3]} 14... c5 {[%clk 0:02:23.4]} 15. Ba3 {[%clk
0:02:35.5]} 15... b5 {[%clk 0:02:19.9]} 16. Bd5 {[%clk 0:02:34.7]} 16... Bb7
{[%clk 0:01:58.1]} 17. Bxb7 {[%clk 0:02:30.1]} 17... Ra7 {[%clk 0:01:54.7]} 18.
Bxe4 {[%clk 0:02:25.1]} 18... Rxe7 {[%clk 0:01:54.8]} 19. Bf3 {[%clk 0:02:26]}
19... b4 {[%clk 0:01:54.7]} 20. Bxb4 {[%clk 0:02:23.3]} 20... cxb4 {[%clk
0:01:54.5]} 21. Rab1 {[%clk 0:02:18.4]} 21... Rc7 {[%clk 0:01:53.2]} 22. Be4
{[%clk 0:02:14.1]} 22... Re8 {[%clk 0:01:50]} 23. Bd3 {[%clk 0:02:14.8]} 23...
a5 {[%clk 0:01:40.7]} 24. a3 {[%clk 0:02:14.2]} 24... Rb8 {[%clk 0:01:31.3]} 25.
axb4 {[%clk 0:02:05]} 25... Rxb4 {[%clk 0:01:30.7]} 26. c3 {[%clk 0:02:04.8]}
26... Rb8 {[%clk 0:01:21.8]} 27. b4 {[%clk 0:01:56.4]} 27... Bxc3 {[%clk
0:01:08.3]} 28. bxa5 {[%clk 0:01:54.9]} 28... Rxb1 {[%clk 0:01:05.9]} 29. Rxb1
{[%clk 0:01:52.8]} 29... Bxa5 {[%clk 0:01:06.5]} 30. g3 {[%clk 0:01:46.3]} 30...
Rc3 {[%clk 0:00:58.6]} 31. Be4 {[%clk 0:01:42.8]} 31... Bc7 {[%clk 0:00:53.5]}
32. Kg2 {[%clk 0:01:34]} 32... Be5 {[%clk 0:00:50.6]} 33. f4 {[%clk 0:01:30.6]}
33... Bd4 {[%clk 0:00:48.6]} 34. Rd1 {[%clk 0:01:20.5]} 34... Bb6 {[%clk
0:00:44.3]} 35. Kh3 {[%clk 0:01:17.7]} 35... Re3 {[%clk 0:00:42.7]} 36. Bd5
{[%clk 0:01:15.5]} 36... f5 {[%clk 0:00:42.7]} 37. Kh4 {[%clk 0:01:11.6]} 37...
Re2 {[%clk 0:00:36.4]} 38. h3 {[%clk 0:01:08.4]} 38... Bd8# {[%clk 0:00:37]} 0

[Event "Torneo Nuevo Centro. Jornada 11"]
[Site "Chess.com"]
[Date "2020.08.28"]
[Round "7"]
[White "Martin Ayala, David"]
[Black "Fernández Martin, Carlos"]
[Result "1-0"]
[WhiteElo "1900"]
[BlackElo "1777"]
[TimeControl "180+2"]
[EndTime "11:43:04 PDT"]
[Termination "Victoria de martinayala por jaque mate"]

1. e4 {[%clk 0:03:01.9]} 1... c5 {[%clk 0:03:01.2]} 2. Nc3 {[%clk 0:03:02.5]}
2... d6 {[%clk 0:03:01.2]} 3. f4 {[%clk 0:03:03.3]} 3... Nc6 {[%clk 0:03:00]} 4.
Nf3 {[%clk 0:03:04.3]} 4... a6 {[%clk 0:02:59.5]} 5. a4 {[%clk 0:03:04.5]} 5...
e6 {[%clk 0:03:00.1]} 6. Bc4 {[%clk 0:03:04.9]} 6... Be7 {[%clk 0:03:00.2]} 7.
O-O {[%clk 0:03:04.9]} 7... Nf6 {[%clk 0:02:59.8]} 8. Qe1 {[%clk 0:03:03.4]}
8... d5 {[%clk 0:03:00.6]} 9. Bb3 {[%clk 0:03:00]} 9... c4 {[%clk 0:02:59.5]}
10. Ba2 {[%clk 0:03:00.7]} 10... d4 {[%clk 0:03:00.5]} 11. Nd1 {[%clk
0:02:58.2]} 11... Nb4 {[%clk 0:02:43.8]} 12. Bb1 {[%clk 0:02:57]} 12... d3
{[%clk 0:02:41]} 13. c3 {[%clk 0:02:52.4]} 13... Nc6 {[%clk 0:02:30.8]} 14. Ne3
{[%clk 0:02:44.9]} 14... Bc5 {[%clk 0:02:30.2]} 15. Kh1 {[%clk 0:02:38.1]} 15...
Bxe3 {[%clk 0:02:27.5]} 16. Qxe3 {[%clk 0:02:37.6]} 16... Qc7 {[%clk 0:02:00.5]}
17. b4 {[%clk 0:02:31.9]} 17... Bd7 {[%clk 0:01:54.6]} 18. Ba3 {[%clk
0:02:28.1]} 18... b5 {[%clk 0:01:45.7]} 19. Ba2 {[%clk 0:02:25.5]} 19... Ng4
{[%clk 0:01:31.1]} 20. Qc5 {[%clk 0:02:02.6]} 20... Qxf4 {[%clk 0:01:08.6]} 21.
g3 {[%clk 0:01:51.3]} 21... Qb8 {[%clk 0:01:02.9]} 22. Qg5 {[%clk 0:01:37.3]}
22... h5 {[%clk 0:00:25.9]} 23. Qxg7 {[%clk 0:01:35.7]} 23... Ke7 {[%clk
0:00:12.3]} 24. Ng5 {[%clk 0:01:27.6]} 24... Rf8 {[%clk 0:00:03.4]} 25. Rxf7+
{[%clk 0:01:26.7]} 25... Rxf7 {[%clk 0:00:04.3]} 26. Qxf7+ {[%clk 0:01:27.4]}
26... Kd6 {[%clk 0:00:05.5]} 27. Bxc4 {[%clk 0:01:20]} 27... bxc4 {[%clk
0:00:05.4]} 28. b5+ {[%clk 0:01:20.1]} 28... Kc7 {[%clk 0:00:05.8]} 29. bxc6
{[%clk 0:01:16.5]} 29... Kxc6 {[%clk 0:00:06.9]} 30. Nxe6 {[%clk 0:01:14.1]}
30... Bxe6 {[%clk 0:00:06.9]} 31. Qxe6+ {[%clk 0:01:13.7]} 31... Kb7 {[%clk
0:00:02.3]} 32. Rb1+ {[%clk 0:01:13.9]} 32... Ka7 {[%clk 0:00:03.8]} 33. Bc5+
{[%clk 0:01:14.1]} 33... Qb6 {[%clk 0:00:03.9]} 34. Qxb6# {[%clk 0:01:15]} 1

[Event "Torneo Nuevo Centro. Jornada 11"]
[Site "Chess.com"]
[Date "2020.08.28"]
[Round "7"]
[White "Kovacevic, Slobodan"]
[Black "Soliva Ruiz, Ramon"]
[Result "1-0"]
[WhiteElo "2224"]
[BlackElo "1517"]
[TimeControl "180+2"]
[EndTime "11:43:16 PDT"]
[Termination "Victoria de nikko110 por tiempo"]

1. d4 {[%clk 0:03:01.9]} 1... Nf6 {[%clk 0:02:59.5]} 2. Nf3 {[%clk 0:03:02]}
2... e6 {[%clk 0:03:00.2]} 3. Bf4 {[%clk 0:03:01.6]} 3... d6 {[%clk 0:03:00.5]}
4. Nbd2 {[%clk 0:03:00.6]} 4... Be7 {[%clk 0:03:01.9]} 5. h3 {[%clk 0:03:00.1]}
5... Nbd7 {[%clk 0:03:03.3]} 6. e3 {[%clk 0:03:00.5]} 6... b6 {[%clk 0:03:04.7]}
7. c3 {[%clk 0:03:00]} 7... Bb7 {[%clk 0:03:06.1]} 8. Be2 {[%clk 0:02:58.2]}
8... c5 {[%clk 0:02:46.1]} 9. O-O {[%clk 0:02:56.6]} 9... O-O {[%clk 0:02:43.3]}
10. a4 {[%clk 0:02:55.4]} 10... cxd4 {[%clk 0:02:24.1]} 11. exd4 {[%clk
0:02:53.5]} 11... Rc8 {[%clk 0:02:21.3]} 12. Bh2 {[%clk 0:02:52.3]} 12... Ne4
{[%clk 0:02:18.3]} 13. Nc4 {[%clk 0:02:49.8]} 13... d5 {[%clk 0:02:12.2]} 14.
Ne3 {[%clk 0:02:42.2]} 14... Bd6 {[%clk 0:01:35.1]} 15. Ne5 {[%clk 0:02:36.1]}
15... Nxe5 {[%clk 0:01:26.5]} 16. dxe5 {[%clk 0:02:29.1]} 16... Be7 {[%clk
0:01:27.2]} 17. Bd3 {[%clk 0:02:27.4]} 17... Nc5 {[%clk 0:01:19.9]} 18. Bc2
{[%clk 0:02:26.4]} 18... a5 {[%clk 0:00:54.2]} 19. Ng4 {[%clk 0:02:21.9]} 19...
h5 {[%clk 0:00:42.6]} 20. Ne3 {[%clk 0:02:20.1]} 20... g6 {[%clk 0:00:42.8]} 21.
f3 {[%clk 0:02:17.4]} 21... Kg7 {[%clk 0:00:40.4]} 22. Qd4 {[%clk 0:02:12.7]}
22... f6 {[%clk 0:00:26.8]} 23. Kh1 {[%clk 0:02:08.7]} 23... fxe5 {[%clk
0:00:25.1]} 24. Bxe5+ {[%clk 0:02:06.2]} 24... Bf6 {[%clk 0:00:25.6]} 25. Rfe1
{[%clk 0:02:01.6]} 25... Bxe5 {[%clk 0:00:21.9]} 26. Qxe5+ {[%clk 0:02:00.3]}
26... Qf6 {[%clk 0:00:23.4]} 27. Qxf6+ {[%clk 0:01:54.7]} 27... Rxf6 {[%clk
0:00:22.1]} 28. Kg1 {[%clk 0:01:52.3]} 28... Re8 {[%clk 0:00:21.2]} 29. b4
{[%clk 0:01:46.9]} 29... axb4 {[%clk 0:00:18.5]} 30. cxb4 {[%clk 0:01:46.2]}
30... Nd7 {[%clk 0:00:19.5]} 31. a5 {[%clk 0:01:44]} 31... bxa5 {[%clk
0:00:10.7]} 32. Rxa5 {[%clk 0:01:40.7]} 32... Ne5 {[%clk 0:00:10.8]} 33. Ra7
{[%clk 0:01:38.8]} 33... Re7 {[%clk 0:00:11.6]} 34. Rc1 {[%clk 0:01:21]} 34...
Nc6 {[%clk 0:00:11.7]} 35. Ra4 {[%clk 0:01:18.9]} 35... Nd4 {[%clk 0:00:11.8]}
36. Bd1 {[%clk 0:01:17.6]} 36... e5 {[%clk 0:00:06.2]} 37. Ra5 {[%clk 0:01:16]}
1